bitfinex/quotes_BTCUSD_20250225
["timestamp","ask_amount","ask_price","bid_price","bid_amount"]
[1740481092422,0.20219685,88469.0,88468.0,0.00304003]
[1740481093162,0.20219685,88469.0,88468.0,0.00473643]
[1740481093537,0.20417512,88469.0,88468.0,0.00473643]
[1740481093964,0.20417512,88469.0,88468.0,4.3e-07]
[1740481094977,0.20417531,88469.0,88468.0,4.3e-07]
[1740481095179,0.20219685,88469.0,88468.0,4.3e-07]
[1740481095488,0.20417517,88469.0,88468.0,4.3e-07]
[1740481097914,0.169583,88452.0,88442.0,0.01316]
[1740481098043,0.169583,88452.0,88451.0,0.03678123]
[1740481098253,0.169583,88452.0,88451.0,0.00182152]
[1740481098764,0.169585,88451.0,88450.0,5.2e-07]
[1740481101273,0.170585,88451.0,88450.0,0.00200052]
[1740481101468,0.170585,88451.0,88450.0,5.2e-07]
[1740481102032,0.169596,88445.0,88444.0,7.2e-07]
[1740481102288,0.17157487,88445.0,88444.0,7.2e-07]
[1740481103401,0.170596,88445.0,88444.0,7.2e-07]
[1740481103621,0.17257475,88445.0,88444.0,7.2e-07]
[1740481104065,0.170596,88445.0,88444.0,7.2e-07]
[1740481104264,0.169596,88445.0,88444.0,7.2e-07]
[1740481104471,0.170596,88445.0,88444.0,0.00500072]
[1740481104731,0.17157476,88445.0,88444.0,7.2e-07]
[1740481105824,0.169596,88445.0,88444.0,7.2e-07]
[1740481106165,0.170596,88445.0,88444.0,7.2e-07]
[1740481107008,0.169596,88445.0,88444.0,7.2e-07]
[1740481107190,0.17157468,88445.0,88444.0,7.2e-07]
[1740481107771,0.17257468,88445.0,88444.0,7.2e-07]
[1740481108239,0.17157468,88445.0,88444.0,7.2e-07]
[1740481109493,0.17257468,88445.0,88444.0,7.2e-07]
[1740481109680,0.17157468,88445.0,88444.0,7.2e-07]
[1740481110078,0.17257468,88445.0,88444.0,7.2e-07]
[1740481110300,0.17157468,88445.0,88444.0,7.2e-07]
[1740481110683,0.17257468,88445.0,88444.0,7.2e-07]
[1740481111291,0.17257509,88445.0,88444.0,7.2e-07]
[1740481111693,0.16737509,88445.0,88444.0,7.2e-07]
[1740481112598,0.169646,88419.0,88418.0,0.01454085]
[1740481112796,0.169644,88421.0,88418.0,0.01454085]
[1740481112984,0.15,88458.0,88421.0,0.01454085]
[1740481113398,0.169618,88434.0,88433.0,0.01454085]
[1740481113717,0.00842576,88464.0,88422.0,0.06649827]
[1740481113718,0.01126704,88462.0,88423.0,0.2268]
[1740481113920,0.169635,88425.0,88424.0,0.03484506]
[1740481114156,0.226177,88427.0,88423.0,0.01316]
[1740481114333,0.169637,88424.0,88423.0,0.01316]
[1740481115500,0.2009538,88424.0,88423.0,0.01316]
[1740481115908,0.169639,88423.0,88422.0,0.03166167]
[1740481117275,0.169648,88418.0,88413.0,0.0016958]
[1740481117482,0.169648,88418.0,88417.0,0.03656927]
[1740481119231,0.169648,88418.0,88417.0,0.0016958]
[1740481119408,0.169648,88418.0,88417.0,0.03658221]
[1740481119613,0.169648,88418.0,88417.0,0.0016958]
[1740481119822,0.169648,88418.0,88417.0,0.03656817]
[1740481120400,0.170648,88418.0,88417.0,0.03856817]
[1740481122155,0.22619,88422.0,88417.0,0.0036958]
[1740481122489,0.169648,88418.0,88417.0,0.0036958]
[1740481123192,0.169648,88418.0,88417.0,0.0016958]
[1740481123368,0.169648,88418.0,88417.0,0.0026958]
[1740481123749,0.169648,88418.0,88417.0,0.0016958]
[1740481123950,0.170648,88418.0,88417.0,0.0026958]
[1740481124693,0.170648,88418.0,88417.0,0.0016958]
[1740481124858,0.169648,88418.0,88417.0,0.0016958]
[1740481125284,0.03156509,88424.0,88417.0,0.0016958]
[1740481125506,0.169646,88419.0,88418.0,0.01454085]
[1740481126029,0.226192,88421.0,88417.0,0.0016958]
[1740481126030,0.169648,88418.0,88417.0,0.0016958]
[1740481126234,0.170648,88418.0,88417.0,0.0046958]
[1740481126528,0.169648,88418.0,88417.0,0.0016958]
[1740481127312,0.170648,88418.0,88417.0,0.0046958]
[1740481129246,0.22619,88422.0,88417.0,0.0016958]
[1740481129599,0.170648,88418.0,88417.0,0.0046958]
[1740481130332,0.169648,88418.0,88417.0,0.0016958]
[1740481130734,0.169648,88418.0,88417.0,0.0046958]
[1740481131050,0.169648,88418.0,88417.0,0.0016958]
[1740481133344,0.169648,88418.0,88417.0,0.0016958]
[1740481133463,0.170648,88418.0,88417.0,0.0046958]
[1740481135310,0.169648,88418.0,88417.0,0.0016958]
[1740481135674,0.170648,88418.0,88417.0,0.0046958]
[1740481135888,0.169648,88418.0,88417.0,0.0016958]
[1740481136093,0.169648,88418.0,88417.0,0.0046958]
[1740481136421,0.170648,88418.0,88417.0,0.0046958]
[1740481136589,0.169648,88418.0,88417.0,0.0016958]
[1740481136792,0.001,88418.0,88417.0,0.0046958]
[1740481137029,0.170648,88418.0,88417.0,0.0016958]
[1740481139012,0.171648,88418.0,88417.0,0.0086958]
[1740481139448,0.170648,88418.0,88417.0,8e-07]
[1740481139704,0.171648,88418.0,88417.0,0.0070008]
[1740481140476,0.169648,88418.0,88417.0,8e-07]
[1740481141687,0.170648,88418.0,88417.0,0.0070008]
[1740481142048,0.169648,88418.0,88417.0,8e-07]
[1740481142252,0.001698,88420.0,88417.0,0.0070008]
[1740481142462,0.170648,88418.0,88417.0,0.0070008]
[1740481142680,0.170648,88418.0,88417.0,8e-07]
[1740481142997,0.171648,88418.0,88417.0,0.0070008]
[1740481143196,0.170648,88418.0,88417.0,8e-07]
[1740481143579,0.170648,88418.0,88417.0,0.0070008]
[1740481144861,0.169648,88418.0,88417.0,8e-07]
[1740481145078,0.169648,88418.0,88417.0,0.0070008]
[1740481145914,0.169648,88418.0,88417.0,8e-07]
[1740481146439,0.169648,88418.0,88417.0,0.0070008]
[1740481146805,0.169648,88418.0,88417.0,0.04208291]
[1740481147316,0.169648,88418.0,88417.0,0.0070008]
[1740481148123,0.001698,88420.0,88418.0,0.0825]
[1740481148325,0.169646,88419.0,88418.0,0.0825]
[1740481148525,0.169646,88419.0,88418.0,0.11755539]
[1740481148932,0.169646,88419.0,88418.0,0.03505539]
[1740481149300,0.169648,88418.0,88417.0,8e-07]
[1740481151787,0.169648,88418.0,88417.0,0.0070008]
[1740481151992,0.169648,88418.0,88417.0,0.04205619]
[1740481152143,0.169648,88418.0,88417.0,0.05513619]
[1740481152343,0.169648,88418.0,88417.0,0.04205619]
[1740481152789,0.001698,88420.0,88417.0,0.04205619]
[1740481152993,0.169646,88419.0,88418.0,0.03505539]
[1740481154404,0.169648,88418.0,88417.0,0.0070008]
[1740481154601,0.169648,88418.0,88417.0,0.04206703]
[1740481154913,0.169648,88418.0,88417.0,0.03506703]
[1740481155117,0.169648,88418.0,88417.0,8e-07]
[1740481155473,0.169648,88418.0,88417.0,0.0130808]
[1740481155679,0.169648,88418.0,88417.0,0.0200808]
[1740481156115,0.169648,88418.0,88417.0,0.04206703]
[1740481157260,0.169648,88418.0,88417.0,0.03506703]
[1740481157462,0.169648,88418.0,88417.0,8e-07]
[1740481157583,0.169648,88418.0,88417.0,0.0070008]
[1740481157785,0.169656,88414.0,88413.0,0.0016958]
[1740481157994,0.159656,88414.0,88413.0,0.0016958]
[1740481158551,0.159656,88414.0,88413.0,8e-07]
[1740481159706,0.15504155,88414.0,88413.0,8e-07]
[1740481160290,0.15504155,88414.0,88413.0,0.0070008]
[1740481160495,0.15504155,88414.0,88413.0,8e-07]
[1740481160841,0.15504155,88414.0,88413.0,0.0070008]
[1740481161161,0.15504155,88414.0,88413.0,8e-07]
[1740481161590,0.15504155,88414.0,88413.0,0.0070008]
[1740481161723,0.15504155,88414.0,88413.0,8e-07]
[1740481162124,0.15604155,88414.0,88413.0,0.0070008]
[1740481162556,0.15604155,88414.0,88413.0,0.04206731]
[1740481163387,0.15504155,88414.0,88413.0,0.03506731]
[1740481163583,0.15504155,88414.0,88413.0,0.0070008]
[1740481163988,0.15504155,88414.0,88413.0,8e-07]
[1740481164196,0.15504155,88414.0,88413.0,0.0070008]
[1740481164412,0.15504155,88414.0,88413.0,8e-07]
[1740481164767,0.15504155,88414.0,88413.0,0.0070008]
[1740481164971,0.15504155,88414.0,88413.0,0.03506731]
[1740481165509,0.169664,88410.0,88409.0,3.1e-07]
[1740481167480,0.170664,88410.0,88409.0,0.00700031]
[1740481167878,0.169669,88407.0,88406.0,1.1e-07]
[1740481169113,0.16979768,88407.0,88406.0,1.1e-07]
[1740481170007,0.17079768,88407.0,88406.0,0.00300011]
[1740481170210,0.17079768,88407.0,88406.0,1.1e-07]
[1740481170431,0.17179768,88407.0,88406.0,0.00300011]
[1740481170835,0.17079768,88407.0,88406.0,1.1e-07]
[1740481171061,0.17179768,88407.0,88406.0,0.00300011]
[1740481172071,0.169683,88400.0,88399.0,1.1e-07]
[1740481174081,0.170683,88400.0,88399.0,1.1e-07]
[1740481174449,0.169683,88400.0,88399.0,1.1e-07]
[1740481177519,0.169708,88387.0,88386.0,3.1e-07]
[1740481179151,0.1970072,88387.0,88386.0,3.1e-07]
[1740481186593,0.169708,88387.0,88386.0,3.1e-07]
[1740481187561,0.01126704,88431.0,88388.0,0.01454085]
[1740481187760,0.0084604,88450.0,88406.0,0.444071]
[1740481187906,0.00182508,88407.0,88406.0,1.19482952]
[1740481188111,0.00182508,88407.0,88406.0,0.91141099]
[1740481188305,0.17149408,88407.0,88406.0,0.89837099]
[1740481188545,0.17149408,88407.0,88406.0,0.91141099]
[1740481188800,0.17149408,88407.0,88406.0,0.74687014]
[1740481188981,0.17149408,88407.0,88406.0,1.44687014]
[1740481190683,0.17149408,88407.0,88406.0,0.15557014]
[1740481191645,0.17149408,88407.0,88406.0,0.07967014]
[1740481194779,0.00182508,88407.0,88406.0,0.09421099]
[1740481195009,0.00182508,88407.0,88406.0,0.24579435]
[1740481195242,0.00182508,88407.0,88406.0,0.65612952]
[1740481195689,0.00182508,88407.0,88406.0,1.15612952]
[1740481195913,0.00182508,88407.0,88406.0,1.52925852]
[1740481196143,0.00182508,88407.0,88406.0,1.41551099]
[1740481196409,0.17149408,88407.0,88406.0,1.41551099]
[1740481196645,0.169669,88407.0,88406.0,1.08750167]
[1740481196877,0.169669,88407.0,88406.0,0.04470167]
[1740481199378,0.02682546,88409.0,88405.0,0.10112856]
[1740481199379,0.169671,88406.0,88405.0,0.10112856]
[1740481199577,0.169671,88406.0,88405.0,0.10155755]
[1740481201036,0.1713676,88406.0,88405.0,0.10155755]
[1740481201227,0.1713676,88406.0,88405.0,0.00042899]
[1740481202087,0.2183676,88406.0,88405.0,9.9e-07]
[1740481202288,0.2183676,88406.0,88383.0,0.5]
[1740481202289,0.169708,88387.0,88384.0,0.034894]
[1740481202621,0.169708,88387.0,88386.0,0.00012899]
[1740481203509,0.169754,88363.0,88361.0,0.0016942]
[1740481204716,0.0085812,88379.0,88355.0,0.0016948]
[1740481204717,0.01126704,88375.0,88355.0,0.0016948]
[1740481205034,0.169767,88356.0,88355.0,8e-07]
[1740481205391,0.19753427,88356.0,88355.0,8e-07]
[1740481206505,0.19766263,88356.0,88355.0,8e-07]
[1740481207395,0.16989536,88356.0,88355.0,8e-07]
[1740481209281,0.16981,88334.0,88333.0,0.0008483]
[1740481209470,0.16981,88334.0,88333.0,3e-07]
[1740481209914,0.18107704,88334.0,88333.0,3e-07]
[1740481210273,0.16981,88334.0,88333.0,3e-07]
[1740481210646,0.226401,88339.0,88333.0,3e-07]
[1740481210843,0.16981,88334.0,88333.0,3e-07]
[1740481212373,0.00012836,88356.0,88333.0,3e-07]
[1740481212724,0.00012836,88356.0,88335.0,0.01454085]
[1740481212883,0.00012836,88356.0,88337.0,0.01454085]
[1740481213046,0.00012836,88356.0,88339.0,0.01454085]
[1740481213252,0.169774,88353.0,88341.0,0.01454085]
[1740481213454,0.00012836,88356.0,88341.0,0.01454085]
[1740481213672,0.226359,88355.0,88348.0,0.5]
[1740481213874,0.169779,88350.0,88349.0,0.01454085]
[1740481214075,0.00012836,88356.0,88349.0,0.01454085]
[1740481214276,0.00012836,88356.0,88351.0,0.01454085]
[1740481214497,0.00012836,88356.0,88352.0,0.03166167]
[1740481214812,0.00012836,88356.0,88355.0,0.74274085]
[1740481215109,0.00012836,88356.0,88355.0,0.79056492]
[1740481215688,0.00012836,88356.0,88352.0,5.2e-07]
[1740481215885,0.09999967,88351.0,88333.0,3e-07]
[1740481216234,0.09999967,88334.0,88333.0,3e-07]
[1740481216434,0.14683544,88334.0,88333.0,3e-07]
[1740481217622,0.15191245,88334.0,88333.0,3e-07]
[1740481217827,0.05191278,88334.0,88333.0,3e-07]
[1740481218030,0.04683577,88334.0,88333.0,3e-07]
[1740481218238,0.09999967,88353.0,88333.0,3e-07]
[1740481218558,0.04622708,88352.0,88336.0,0.01454085]
[1740481218758,0.00012836,88356.0,88338.0,0.01454085]
[1740481218963,0.00012836,88356.0,88355.0,0.169769]
[1740481219183,0.00012836,88356.0,88355.0,0.01458429]
[1740481219338,0.00012836,88356.0,88355.0,0.013]
[1740481219538,0.00012836,88356.0,88355.0,0.02754085]
[1740481219738,0.00012836,88356.0,88355.0,0.02912502]
[1740481220079,0.00012836,88356.0,88355.0,0.44759937]
[1740481220259,0.00012836,88356.0,88355.0,0.4460152]
[1740481220579,0.09999967,88386.0,88376.0,0.169728]
[1740481220878,0.04379363,88385.0,88376.0,0.00158385]
[1740481221079,0.04379363,88385.0,88365.0,0.01454085]
[1740481221080,0.04379363,88385.0,88366.0,0.00158386]
[1740481221408,0.04379363,88385.0,88373.0,0.01454085]
[1740481221731,0.04379363,88385.0,88377.0,0.169727]
[1740481221940,0.04379363,88385.0,88376.0,0.169728]
[1740481222135,0.04379363,88385.0,88374.0,0.669732]
[1740481222723,0.09042051,88397.0,88375.0,0.513]
[1740481222843,0.09042051,88397.0,88375.0,0.51312852]
[1740481223038,0.00504645,88384.0,88375.0,0.51312852]
[1740481223248,0.09042051,88397.0,88375.0,0.51312852]
[1740481223695,0.00527247,88396.0,88375.0,0.01312852]
[1740481224008,0.09211791,88397.0,88375.0,0.01312852]
[1740481224333,0.00527247,88395.0,88375.0,0.01312852]
[1740481224547,0.0016974,88397.0,88375.0,0.01312852]
[1740481224667,0.0016974,88397.0,88378.0,0.5]
[1740481224867,0.0016974,88397.0,88381.0,0.169718]
[1740481225202,0.0016974,88397.0,88379.0,0.00158388]
[1740481225603,0.09042051,88393.0,88375.0,0.00012852]
[1740481225807,0.09025074,88393.0,88375.0,0.00012852]
[1740481225986,0.00527375,88392.0,88375.0,0.00012852]
[1740481226190,0.15,88391.0,88375.0,0.00012852]
[1740481226610,0.00525762,88390.0,88375.0,0.00012852]
[1740481226822,0.21893306,88392.0,88375.0,0.00012852]
[1740481227350,0.21893306,88392.0,88376.0,0.013]
[1740481227557,0.0016974,88397.0,88377.0,0.00158402]
[1740481227854,0.24318354,88408.0,88376.0,0.013]
[1740481227855,0.00147591,88406.0,88376.0,0.013]
[1740481228153,0.01572586,88410.0,88376.0,0.013]
[1740481228497,0.3279,88406.0,88376.0,0.013]
[1740481229138,0.15,88405.0,88376.0,0.013]
[1740481230022,0.15,88405.0,88377.0,0.01296]
[1740481230333,0.15,88405.0,88375.0,0.00012852]
[1740481230544,0.15,88405.0,88376.0,0.01296]
[1740481230791,0.02490956,88404.0,88375.0,0.00012852]
[1740481230966,0.15,88403.0,88375.0,0.00012852]
[1740481231516,0.09042051,88401.0,88375.0,0.00012852]
[1740481232475,0.25,88394.0,88375.0,0.00012852]
[1740481232678,0.1,88381.0,88375.0,0.00012852]
[1740481232879,0.15,88379.0,88375.0,0.00012852]
[1740481233086,0.0483,88378.0,88375.0,0.00012852]
[1740481233861,0.15,88376.0,88375.0,0.00012852]
[1740481236942,0.1516974,88376.0,88375.0,0.00012852]
[1740481237301,0.4795974,88376.0,88375.0,0.00012852]
[1740481242343,0.15756151,88376.0,88375.0,0.00012852]
[1740481245722,0.15756151,88376.0,88375.0,0.01308852]
[1740481248808,0.15756151,88376.0,88375.0,0.00012852]
[1740481250411,0.15756151,88376.0,88375.0,0.00097662]
[1740481254932,0.15756151,88376.0,88375.0,0.01393662]
[1740481257991,0.15756151,88376.0,88375.0,0.01393662]
[1740481258603,0.15756151,88376.0,88375.0,0.00097662]
[1740481259546,0.23386151,88376.0,88375.0,0.00097662]
[1740481259983,0.38386151,88376.0,88375.0,0.00097662]
[1740481262945,0.38555851,88376.0,88375.0,0.00097662]
[1740481265099,0.39422133,88376.0,88375.0,0.00097662]
[1740481265954,0.76633346,88376.0,88375.0,0.00097662]
[1740481266164,0.1,88370.0,88331.0,0.5]
[1740481266312,0.1,88367.0,88331.0,0.5]
[1740481266713,0.1,88367.0,88323.0,0.3235]
[1740481266932,0.1,88365.0,88322.0,0.10334051]
[1740481267135,0.1,88356.0,88322.0,0.09042051]
[1740481267454,0.1,88356.0,88320.0,0.0008482]
[1740481267455,0.0764,88354.0,88320.0,0.0008482]
[1740481267655,0.15,88352.0,88320.0,0.0008482]
[1740481267851,0.15,88350.0,88320.0,0.0008482]
[1740481268083,0.3279,88351.0,88320.0,0.0008482]
[1740481268084,0.26174057,88351.0,88320.0,0.0008482]
[1740481268296,0.26174057,88351.0,88324.0,0.0008482]
[1740481269062,0.28636014,88351.0,88324.0,0.0008482]
[1740481270203,0.25836747,88349.0,88324.0,0.0008482]
[1740481271537,0.1,88347.0,88324.0,0.0008482]
[1740481271719,0.25,88340.0,88333.0,0.00012866]
[1740481272134,0.1,88339.0,88333.0,0.00012866]
[1740481273778,0.1,88339.0,88324.0,0.0008482]
[1740481273927,0.15,88337.0,88324.0,0.0008482]
[1740481274130,0.1468,88325.0,88324.0,0.0008482]
[1740481274343,0.32827891,88325.0,88324.0,0.0008482]
[1740481274539,0.27300761,88325.0,88324.0,0.0008482]
[1740481274869,0.01126704,88325.0,88324.0,0.0008482]
[1740481275092,0.26174057,88338.0,88324.0,0.0008482]
[1740481275659,0.15,88337.0,88324.0,0.0008482]
[1740481275868,0.01454085,88336.0,88324.0,0.0008482]
[1740481276114,0.1,88330.0,88324.0,0.0008482]
[1740481276319,0.61174057,88329.0,88320.0,0.0008482]
[1740481276641,0.61174057,88329.0,88270.0,0.00846875]
[1740481276642,0.1,88313.0,88284.0,0.013151]
[1740481276799,0.1,88306.0,88284.0,0.013151]
[1740481277026,0.0488,88304.0,88284.0,0.013151]
[1740481277233,0.1,88299.0,88284.0,0.013151]
[1740481277506,0.1,88297.0,88284.0,0.00452552]
[1740481277642,0.1,88274.0,88255.0,0.10038342]
[1740481277845,0.1,88265.0,88255.0,0.10038342]
[1740481278046,0.01126704,88265.0,88255.0,0.10038342]
[1740481278245,0.25,88264.0,88255.0,0.10038342]
[1740481278583,0.45744057,88263.0,88244.0,0.0008486]
[1740481278918,0.25,88257.0,88244.0,0.0008486]
[1740481279030,0.00854708,88245.0,88244.0,0.0008486]
[1740481279230,0.01981412,88245.0,88244.0,0.0008486]
[1740481281353,0.15,88246.0,88244.0,0.0008486]
[1740481281592,0.26174057,88255.0,88244.0,0.0008486]
[1740481281765,0.01126704,88273.0,88245.0,0.01292]
[1740481282106,0.0568455,88325.0,88244.0,0.0008486]
[1740481282107,0.01126704,88282.0,88246.0,0.01454085]
[1740481282308,0.26174057,88303.0,88256.0,0.16996]
[1740481282309,0.01126704,88296.0,88256.0,0.16996]
[1740481282601,0.00864044,88310.0,88257.0,0.29354085]
[1740481282836,0.00982075,88310.0,88258.0,0.86788578]
[1740481283016,0.00012857,88303.0,88258.0,0.8663]
[1740481283266,0.09042051,88293.0,88259.0,0.01292]
[1740481283950,0.10168755,88293.0,88259.0,0.01292]
[1740481284597,0.10168755,88293.0,88250.0,0.51454085]
[1740481284598,0.09042051,88273.0,88250.0,0.5]
[1740481284770,0.15,88272.0,88244.0,0.0008486]
[1740481285148,0.09042051,88264.0,88244.0,0.0008486]
[1740481285315,0.25168755,88264.0,88244.0,0.0008486]
[1740481285517,0.09042051,88253.0,88244.0,0.0008486]
[1740481285724,0.1586251,88249.0,88244.0,0.0008486]
[1740481286082,0.1586251,88249.0,88244.0,0.00127691]
[1740481286427,0.1,88241.0,88235.0,0.0008486]
[1740481286625,0.1,88237.0,88236.0,0.00019817]
[1740481286924,0.15,88240.0,88236.0,0.00019817]
[1740481287135,0.1,88237.0,88236.0,0.00019817]
[1740481287373,0.29694647,88237.0,88236.0,0.00019817]
[1740481287575,0.19694647,88237.0,88236.0,0.00019817]
[1740481287780,0.29694647,88237.0,88236.0,0.00019817]
[1740481287979,0.29694647,88237.0,88209.0,4e-05]
[1740481287980,0.1,88235.0,88209.0,4e-05]
[1740481288157,0.15,88234.0,88209.0,4e-05]
[1740481288354,0.01022814,88210.0,88209.0,4e-05]
[1740481289542,0.01035658,88210.0,88209.0,4e-05]
[1740481289750,0.04138321,88210.0,88209.0,4e-05]
[1740481291624,0.03024043,88231.0,88209.0,4e-05]
[1740481291817,0.291981,88231.0,88209.0,0.00046763]
[1740481292612,0.32243435,88231.0,88209.0,0.00046763]
[1740481292833,0.03045335,88231.0,88209.0,0.00046763]
[1740481293035,0.35216108,88253.0,88209.0,0.05006763]
[1740481293239,0.38930951,88253.0,88209.0,0.05006763]
[1740481293436,0.38930951,88253.0,88212.0,0.01454085]
[1740481293437,0.38261747,88253.0,88212.0,0.01454085]
[1740481293639,0.38261747,88253.0,88214.0,0.01454085]
[1740481293813,0.03045639,88253.0,88216.0,0.01454085]
[1740481294054,0.09042051,88252.0,88218.0,0.15]
[1740481295427,0.02998963,88253.0,88218.0,0.15]
[1740481296822,0.1204526,88273.0,88235.0,0.01454085]
[1740481296951,0.1204526,88273.0,88237.0,0.01454085]
[1740481297167,0.1204526,88273.0,88239.0,0.01454085]
[1740481297359,0.1204526,88273.0,88241.0,0.01454085]
[1740481297991,0.1204526,88273.0,88236.0,0.1983]
[1740481298167,0.09042051,88264.0,88236.0,0.01292]
[1740481298350,0.09042051,88264.0,88233.0,0.3235]
[1740481298551,0.09042051,88255.0,88229.0,0.01292]
[1740481298754,0.0016998,88252.0,88229.0,0.01292]
[1740481299426,0.09042051,88255.0,88229.0,0.01292]
[1740481299427,0.08712031,88255.0,88229.0,0.01292]
[1740481299925,0.02371203,88254.0,88220.0,0.3235]
[1740481300133,0.09042051,88244.0,88209.0,0.0008899]
[1740481300303,0.09042051,88244.0,88211.0,0.01292]
[1740481300505,0.15,88243.0,88209.0,0.0008899]
[1740481301104,0.09042051,88235.0,88209.0,0.0008899]
[1740481301509,0.09042051,88235.0,88209.0,0.00131753]
[1740481308626,0.15,88241.0,88209.0,0.00131753]
[1740481308802,0.26174057,88240.0,88209.0,0.00131753]
[1740481309524,0.27495582,88240.0,88209.0,0.00131753]
[1740481309764,0.15,88239.0,88209.0,0.00131753]
[1740481310136,0.0016998,88235.0,88209.0,0.00131753]
[1740481311820,0.0016998,88235.0,88210.0,0.7]
[1740481313128,0.0016998,88235.0,88209.0,0.00131753]
[1740481313962,0.05038609,88234.0,88209.0,0.00131753]
[1740481314180,0.0016998,88235.0,88209.0,0.00131753]
[1740481317052,0.09042051,88232.0,88209.0,0.00131753]
[1740481319309,0.0772998,88235.0,88209.0,0.00131753]
[1740481319310,0.0016998,88235.0,88209.0,0.00131753]
[1740481320033,0.0016998,88235.0,88210.0,0.0351482]
[1740481320233,0.0016998,88235.0,88209.0,0.00131753]
[1740481320678,0.0016998,88235.0,88210.0,0.03513554]
[1740481321806,0.09042051,88234.0,88210.0,0.03513554]
[1740481321948,0.09042051,88225.0,88209.0,0.00131753]
[1740481322148,0.09042051,88225.0,88210.0,0.7]
[1740481322149,0.09042051,88215.0,88210.0,0.7]
[1740481322588,0.42628142,88214.0,88209.0,0.00131753]
[1740481322799,0.16454085,88200.0,88156.0,0.3235]
[1740481323002,0.16454085,88200.0,88155.0,0.0008495]
[1740481323003,0.09042051,88186.0,88155.0,0.0008495]
[1740481323207,0.25,88185.0,88171.0,0.7]
[1740481323411,0.15,88185.0,88171.0,0.7]
[1740481323608,0.15,88185.0,88156.0,0.4001]
[1740481323806,0.0822,88205.0,88174.0,0.01288]
[1740481324032,0.01454085,88204.0,88172.0,0.3235]
[1740481324209,0.03434275,88203.0,88172.0,0.3235]
[1740481324405,0.09042051,88193.0,88172.0,0.3235]
[1740481324689,0.24042051,88193.0,88155.0,0.0008495]
[1740481325132,0.16454085,88192.0,88155.0,0.0008495]
[1740481325451,0.26454085,88192.0,88155.0,0.0008495]
[1740481325651,0.07167019,88191.0,88155.0,0.0008495]
[1740481326208,0.01454085,88188.0,88155.0,0.0008495]
[1740481326410,0.1,88187.0,88155.0,0.0008495]
[1740481326608,0.00839163,88171.0,88155.0,0.0008495]
[1740481326815,0.01454085,88170.0,88155.0,0.0008495]
[1740481327018,0.0779,88169.0,88155.0,0.0008495]
[1740481327253,0.00839163,88171.0,88155.0,0.0008495]
[1740481327423,0.15,88172.0,88155.0,0.0008495]
[1740481327867,0.15831576,88172.0,88155.0,0.0008495]
[1740481328076,0.15831576,88172.0,88155.0,0.00097794]
[1740481328223,0.03761065,88171.0,88155.0,0.00097794]
[1740481328427,0.00831576,88172.0,88155.0,0.00097794]
[1740481329392,0.15,88179.0,88155.0,0.00097794]
[1740481329534,0.00853299,88174.0,88155.0,0.00097794]
[1740481330014,0.01454085,88173.0,88155.0,0.00097794]
[1740481330204,0.00853299,88174.0,88155.0,0.00097794]
[1740481330412,0.0236433,88173.0,88132.0,0.27532744]
[1740481330567,0.00866153,88174.0,88132.0,0.27532744]
[1740481331398,0.00866153,88174.0,88133.0,0.01288]
[1740481331601,0.00866153,88174.0,88132.0,0.27532744]
[1740481333078,0.00866153,88174.0,88134.0,0.0482]
[1740481333317,0.00012854,88174.0,88140.0,0.01454085]
[1740481333472,0.00012854,88174.0,88141.0,0.00158818]
[1740481333682,0.00012854,88174.0,88136.0,0.5]
[1740481333993,0.09042051,88173.0,88137.0,0.01288]
[1740481334192,0.2082549,88172.0,88136.0,0.5]
[1740481334617,0.2082549,88172.0,88135.0,0.81812744]
[1740481334618,0.0582549,88172.0,88135.0,0.81812744]
[1740481338250,0.00012854,88174.0,88145.0,0.01288]
[1740481338978,0.00012854,88174.0,88146.0,0.27532744]
[1740481339474,0.09042051,88194.0,88148.0,0.01454085]
[1740481339783,0.0489,88203.0,88163.0,0.0768]
[1740481340016,0.26174057,88204.0,88164.0,0.0483]
[1740481340017,0.09042051,88196.0,88164.0,0.0483]
[1740481340139,0.09042051,88196.0,88154.0,0.0799]
[1740481341400,0.09042051,88196.0,88150.0,0.0483]
[1740481341401,0.09042051,88187.0,88150.0,0.0483]
[1740481341615,0.082,88186.0,88151.0,0.00158808]
[1740481341780,0.35216108,88204.0,88153.0,0.01454085]
[1740481341943,0.39618481,88204.0,88155.0,0.01454085]
[1740481342149,0.15,88203.0,88157.0,0.01454085]
[1740481342347,0.09042051,88186.0,88149.0,0.27532744]
[1740481342545,0.0466,88185.0,88150.0,0.01288]
[1740481343383,0.0466,88185.0,88150.0,0.16288]
[1740481343585,0.00868073,88174.0,88148.0,0.00012854]
[1740481343809,0.15,88173.0,88148.0,0.00012854]
[1740481344698,0.15868073,88174.0,88148.0,0.00012854]
[1740481344898,0.15,88174.0,88148.0,0.00012854]
[1740481345118,0.0812,88176.0,88148.0,0.00012854]
[1740481345329,0.00812,88175.0,88148.0,0.00012854]
[1740481345942,0.0016978,88173.0,88148.0,0.00012854]
[1740481347601,0.00859117,88167.0,88148.0,0.00012854]
[1740481347947,0.01985082,88167.0,88148.0,0.00012854]
[1740481349309,0.2263,88157.0,88148.0,0.00012854]
[1740481349502,0.23755965,88157.0,88148.0,0.00012854]
[1740481350497,0.08755965,88157.0,88148.0,0.00012854]
[1740481351612,0.08755965,88157.0,88148.0,0.00712854]
[1740481351818,0.27033174,88167.0,88148.0,0.00712854]
[1740481352915,0.01454085,88165.0,88148.0,0.00712854]
[1740481353410,0.01454085,88163.0,88148.0,0.00712854]
[1740481353573,0.01762577,88166.0,88148.0,0.00712854]
[1740481353770,0.01762577,88166.0,88148.0,0.00012854]
[1740481353771,0.1,88162.0,88148.0,0.00012854]
[1740481353977,0.15,88161.0,88148.0,0.00712854]
[1740481354353,0.15,88161.0,88148.0,0.00012854]
[1740481354739,0.15,88161.0,88148.0,0.00712854]
[1740481354740,0.15,88159.0,88148.0,0.00712854]
[1740481355297,0.15,88159.0,88148.0,0.00012854]
[1740481355795,0.01454085,88158.0,88148.0,0.00712854]
[1740481355996,0.01454085,88158.0,88148.0,0.007]
[1740481356202,0.01454085,88158.0,88132.0,0.0008483]
[1740481356375,0.01466944,88158.0,88132.0,0.0008483]
[1740481356776,0.01779325,88153.0,88132.0,0.0008483]
[1740481357701,0.15,88156.0,88148.0,0.007]
[1740481357901,0.15,88156.0,88148.0,0.0078486]
[1740481358105,0.15,88156.0,88148.0,0.0008486]
[1740481358507,0.00012859,88158.0,88148.0,0.0008486]
[1740481359227,0.00012859,88158.0,88148.0,0.0078486]
[1740481360395,0.00012859,88158.0,88148.0,0.0008486]
[1740481360914,0.00112859,88158.0,88148.0,0.0078486]